bitfinex/quotes_SOLUSD_20241127
["timestamp","ask_amount","ask_price","bid_price","bid_amount"]
[1732733289773,2.5037,239.64,239.58,8.01828763]
[1732733290699,3.54441816,239.64,239.56,28.01828763]
[1732733291170,3.54444026,239.64,239.56,28.01828763]
[1732733291374,2.5037,239.64,239.56,28.01828763]
[1732733291547,8.01828763,239.63,239.56,20.0]
[1732733291754,8.01828763,239.61,239.52,8.01828763]
[1732733292077,2.5037,239.64,239.49,4.1755]
[1732733292078,8.01828763,239.59,239.49,4.1755]
[1732733292249,8.01828763,239.59,239.51,8.01828763]
[1732733293067,1.04093524,239.63,239.53,8.01828763]
[1732733293273,8.01828763,239.63,239.55,8.01828763]
[1732733293766,10.52218763,239.63,239.55,8.01828763]
[1732733295286,10.52218763,239.63,239.53,24.1747]
[1732733295577,10.52218763,239.63,239.54,8.01828763]
[1732733296287,1.04081308,239.62,239.54,8.01828763]
[1732733296471,8.01828763,239.61,239.52,8.01828763]
[1732733296780,1.04092052,239.6,239.52,8.01828763]
[1732733297372,8.01828763,239.62,239.52,8.01828763]
[1732733297576,3.54498118,239.61,239.52,8.01828763]
[1732733298381,2.5041,239.61,239.54,8.01828763]
[1732733298879,2.5039,239.63,239.56,8.01828763]
[1732733299095,9.059169,239.65,239.56,8.01828763]
[1732733299262,3.54458137,239.65,239.58,8.01828763]
[1732733299460,2.5037,239.65,239.58,8.01828763]
[1732733309765,2.5033,239.68,239.6,8.01828763]
[1732733309965,1.04051738,239.72,239.66,8.01828763]
[1732733310193,7.70551165,239.74,239.68,8.01828763]
[1732733310377,1.04041165,239.75,239.61,20.70421428]
[1732733310684,8.01828763,239.74,239.65,8.01828763]
[1732733310886,8.01828763,239.72,239.63,8.01828763]
[1732733311193,9.05876794,239.72,239.63,8.01828763]
[1732733311375,2.503,239.71,239.63,8.01828763]
[1732733311573,3.54341452,239.71,239.63,8.01828763]
[1732733312369,2.503,239.71,239.63,8.01828763]
[1732733313073,3.54341456,239.71,239.63,8.01828763]
[1732733314388,2.503,239.71,239.65,8.01828763]
[1732733315272,8.01828763,239.74,239.65,8.01828763]
[1732733315470,3.54324603,239.73,239.65,8.01828763]
[1732733315894,2.5029,239.73,239.67,8.01828763]
[1732733316075,12.4969,239.76,239.7,8.01828763]
[1732733316282,2.5024,239.77,239.7,8.01828763]
[1732733317979,7.49945911,239.78,239.72,8.01828763]
[1732733319101,10.00175911,239.78,239.72,8.01828763]
[1732733319303,9.05838251,239.77,239.67,20.0]
[1732733319507,8.01828763,239.73,239.67,20.0]
[1732733320302,8.01828763,239.75,239.67,20.0]
[1732733320798,2.5027,239.74,239.67,20.0]
[1732733324895,2.5027,239.74,239.68,8.01828763]
[1732733325588,9.05838251,239.77,239.7,8.01828763]
[1732733325589,2.5025,239.76,239.7,8.01828763]
[1732733325791,2.5022,239.78,239.7,8.01828763]
[1732733326100,2.5022,239.78,239.72,8.01828763]
[1732733326992,2.5021,239.8,239.72,8.01828763]
[1732733327193,10.52038763,239.8,239.72,8.01828763]
[1732733328004,8.01828763,239.78,239.7,4.1718]
[1732733328206,8.01828763,239.78,239.7,8.01828763]
[1732733328384,8.01828763,239.76,239.68,28.01828763]
[1732733329209,8.01828763,239.78,239.7,8.01828763]
[1732733329381,11.56064537,239.78,239.7,8.01828763]
[1732733330413,10.52048763,239.78,239.7,8.01828763]
[1732733331689,10.52038763,239.8,239.72,8.01828763]
[1732733333307,11.23909949,239.82,239.77,8.01828763]
[1732733333503,8.73719949,239.82,239.79,8.01828763]
[1732733334291,8.73719949,239.82,239.77,8.01828763]
[1732733337300,8.73719949,239.82,239.79,8.01828763]
[1732733339304,8.73719949,239.82,239.77,8.01828763]
[1732733340209,8.01828763,239.8,239.71,8.01828763]
[1732733340413,8.01828763,239.79,239.71,8.01828763]
[1732733340715,10.52028763,239.81,239.75,8.01828763]
[1732733340921,8.73719949,239.82,239.77,8.01828763]
[1732733341102,11.23899949,239.82,239.77,8.01828763]
[1732733341497,8.73719949,239.82,239.79,8.01828763]
[1732733342195,8.73719949,239.82,239.75,20.0]
[1732733342396,8.73719949,239.82,239.77,8.01828763]
[1732733344209,11.23909949,239.82,239.75,8.01828763]
[1732733344598,8.73719949,239.82,239.77,8.01828763]
[1732733344813,8.73719949,239.82,239.79,8.01828763]
[1732733346097,8.73719949,239.82,239.76,20.0]
[1732733346292,8.73719949,239.82,239.76,28.01828763]
[1732733346915,10.51998763,239.83,239.76,28.01828763]
[1732733347802,10.51998763,239.83,239.74,8.01828763]
[1732733348113,10.51998763,239.83,239.66,15.1531]
[1732733348114,8.01828763,239.8,239.66,101.21628956]
[1732733348313,8.01828763,239.8,239.72,8.01828763]
[1732733349418,2.5021,239.79,239.72,8.01828763]
[1732733349923,8.01828763,239.78,239.67,4.87540939]
[1732733350221,9.05835395,239.78,239.69,28.01828763]
[1732733350599,9.05835395,239.78,239.69,8.01828763]
[1732733350818,8.01828763,239.76,239.67,8.01828763]
[1732733351125,8.01828763,239.72,239.64,8.01828763]
[1732733351499,10.52118763,239.72,239.64,12.19108763]
[1732733351825,2.5029,239.72,239.64,12.19108763]
[1732733351999,2.5029,239.72,239.67,20.0]
[1732733352621,8.01828763,239.74,239.67,20.0]
[1732733352920,3.54312827,239.73,239.67,20.0]
[1732733354097,8.01828763,239.72,239.6,91.17118956]
[1732733354302,1.04042675,239.71,239.63,20.0]
[1732733354501,9.05873611,239.72,239.65,20.0]
[1732733355122,9.05873611,239.72,239.64,8.01828763]
[1732733355909,9.05873611,239.72,239.63,20.0]
[1732733356499,8.01828763,239.7,239.63,20.0]
[1732733356699,1.04052623,239.69,239.63,20.0]
[1732733356904,10.52128763,239.71,239.63,20.0]
[1732733357105,1.04047066,239.7,239.63,20.0]
[1732733357397,8.01828763,239.65,239.57,8.01828763]
[1732733358019,8.01828763,239.67,239.57,8.01828763]
[1732733358211,1.04065462,239.66,239.57,8.01828763]
[1732733358534,8.7605,239.71,239.57,8.01828763]
[1732733358535,1.0406636,239.7,239.59,8.01828763]
[1732733358818,8.01828763,239.68,239.59,8.01828763]
[1732733359025,9.05883495,239.68,239.59,8.01828763]
[1732733359327,9.05883495,239.68,239.57,4.87860671]
[1732733359328,8.01828763,239.7,239.61,8.01828763]
[1732733359505,10.52138763,239.7,239.61,8.01828763]
[1732733360611,11.56189988,239.7,239.61,12.19158763]
[1732733361619,11.56189988,239.7,239.61,8.01828763]
[1732733363406,1.04052542,239.73,239.65,8.01828763]
[1732733363628,1.04052542,239.73,239.61,4.87763036]
[1732733363629,2.5023,239.77,239.71,8.01828763]
[1732733363918,13.5370817,239.78,239.73,8.01828763]
[1732733364124,14.9992,239.78,239.73,8.01828763]
[1732733364803,14.9992,239.78,239.68,4.87545835]
[1732733365008,14.9992,239.78,239.72,8.01828763]
[1732733367434,2.5023,239.78,239.72,8.01828763]
[1732733367738,2.5021,239.79,239.72,8.01828763]
[1732733368106,2.5021,239.79,239.74,8.01828763]
[1732733368433,12.4969,239.83,239.76,8.01828763]
[1732733368731,9.21956104,239.84,239.76,8.01828763]
[1732733369508,9.21956104,239.84,239.78,8.01828763]
[1732733371621,9.21956104,239.84,239.8,8.01828763]
[1732733373117,9.21956104,239.84,239.78,4.1704]
[1732733373318,9.21956104,239.84,239.78,12.18868763]
[1732733374031,9.21956104,239.84,239.8,8.01828763]
[1732733374406,9.21956104,239.84,239.79,8.01828763]
[1732733375531,9.21956104,239.84,239.79,12.18848763]
[1732733377514,9.21956104,239.84,239.79,8.01828763]
[1732733377714,9.21956104,239.84,239.77,12.18878763]
[1732733378130,9.21956104,239.84,239.8,20.0]
[1732733379734,0.1954706,239.84,239.83,8.01828763]
[1732733381328,0.1954706,239.84,239.83,12.18788763]
[1732733382124,0.1954706,239.84,239.82,8.01828763]
[1732733383213,0.1954706,239.84,239.82,12.18798763]
[1732733387645,0.1954706,239.84,239.83,28.01828763]
[1732733388332,0.1954706,239.84,239.83,32.18788763]
[1732733393644,1.0393928,239.99,239.83,148.3671263]
[1732733393949,2.5001,239.99,239.92,8.01828763]
[1732733394429,10.51838763,239.99,239.92,8.01828763]
[1732733394860,2.5,240.0,239.92,8.01828763]
[1732733395551,17.06208763,240.01,239.92,8.01828763]
[1732733396555,1.03916438,240.0,239.92,8.01828763]
[1732733397092,8.01828763,239.97,239.89,20.0]
[1732733397346,8.01828763,239.97,239.91,20.0]
[1732733397549,8.01828763,239.97,239.89,28.01828763]
[1732733398855,2.5004,239.96,239.89,28.01828763]
[1732733400444,10.51858763,239.97,239.89,32.18678763]
[1732733400858,10.51858763,239.97,239.89,28.01828763]
[1732733401354,10.51858763,239.97,239.89,32.18678763]
[1732733401569,2.5003,239.97,239.91,8.01828763]
[1732733402040,10.51798763,240.02,239.93,8.01828763]
[1732733402237,2.4993,240.06,240.0,28.01828763]
[1732733402455,11.51609542,240.04,239.98,8.01828763]
[1732733402630,9.01659542,240.04,239.98,8.01828763]
[1732733404043,12.55511285,240.04,239.94,15.1572]
[1732733404233,12.55511285,240.04,239.96,8.01828763]
[1732733404858,9.01659542,240.04,240.0,8.01828763]
[1732733405338,0.4894872,240.08,240.02,8.01828763]
[1732733405540,0.4894872,240.08,240.04,8.01828763]
[1732733406055,2.9885872,240.08,240.02,8.01828763]
[1732733406252,0.4894872,240.08,240.04,8.01828763]
[1732733407354,0.4894872,240.08,240.06,8.01828763]
[1732733407959,0.4894872,240.08,240.04,8.01828763]
[1732733408262,0.4894872,240.08,240.03,20.0]
[1732733408448,0.4894872,240.08,240.03,28.01828763]
[1732733409734,0.4894872,240.08,240.01,4.1663]
[1732733409735,2.9886872,240.08,240.01,20.0]
[1732733409941,0.4894872,240.08,240.03,8.01828763]
[1732733410238,0.4894872,240.08,240.03,12.18438763]
[1732733410662,0.4894872,240.08,240.03,8.01828763]
[1732733412053,0.4894872,240.08,240.02,4.1662]
[1732733412252,0.4894872,240.08,240.03,8.01828763]
[1732733413066,0.4894872,240.08,240.05,8.01828763]
[1732733413262,0.4894872,240.08,240.07,8.01828763]
[1732733415845,0.4894872,240.08,240.05,8.01828763]
[1732733418272,2.9886872,240.08,240.03,8.01828763]
[1732733418577,0.4894872,240.08,240.05,8.01828763]
[1732733419765,8.50777483,240.08,240.01,20.0]
[1732733419948,1.03885705,240.07,239.99,23.36828763]
[1732733420154,11.00687483,240.08,239.99,23.36828763]
[1732733420873,2.9885872,240.08,240.01,8.01828763]
[1732733421669,2.9885872,240.08,240.03,8.01828763]
[1732733421981,0.4894872,240.08,240.04,8.01828763]
[1732733423063,0.4894872,240.08,240.06,8.01828763]
[1732733423361,0.4894872,240.08,240.07,4.1654]
[1732733425168,0.4894872,240.08,240.07,27.942284]
[1732733425389,0.4894872,240.08,240.07,43.533184]
[1732733426159,0.4894872,240.08,240.07,119.16527356]
[1732733428067,0.4894872,240.08,240.07,95.38838956]
[1732733428283,0.4894872,240.08,240.01,98.02748956]
[1732733428456,0.4894872,240.08,240.04,8.01828763]
[1732733428861,0.4894872,240.08,240.06,8.01828763]
[1732733429468,0.4894872,240.08,240.06,8.71807537]
[1732733429778,0.4894872,240.08,240.07,23.776884]
[1732733430684,0.4894872,240.08,240.07,27.942284]
[1732733431062,0.4894872,240.08,240.07,35.96057163]
[1732733433781,0.4894872,240.08,240.07,8.01828763]
[1732733434169,0.4894872,240.08,240.07,12.48523767]
[1732733434686,0.4894872,240.08,240.03,75.63208956]
[1732733435370,0.4894872,240.08,240.04,12.48523767]
[1732733436185,2.9885872,240.08,240.02,12.48523767]
[1732733436775,0.4894872,240.08,240.02,12.48523767]
[1732733436972,0.4894872,240.08,240.04,12.48523767]
[1732733439269,0.4894872,240.08,240.06,12.48523767]
[1732733439478,0.4894872,240.08,240.07,24.47697599]
[1732733439680,0.4894872,240.08,240.07,100.10906555]
[1732733439878,0.4894872,240.08,240.07,99.40897356]
[1732733440396,5.0,240.3,240.07,99.40897356]
[1732733440397,1.03826979,240.26,240.11,20.0]
[1732733440565,2.4973,240.25,240.18,12.48523767]
[1732733440766,2.4973,240.25,240.12,36.26212167]
[1732733440767,1.03812701,240.24,240.16,12.48523767]
[1732733440993,14.98253767,240.25,240.16,12.48523767]
[1732733441177,2.4973,240.25,240.18,12.48523767]
[1732733442370,1.03807211,240.24,240.16,12.48523767]
[1732733442869,12.48523767,240.23,240.14,12.48523767]
[1732733443069,1.03823448,240.22,240.14,12.48523767]
[1732733444278,2.4978,240.21,240.14,12.48523767]
[1732733444503,1.03828311,240.2,240.12,12.48523767]
[1732733445290,2.4978,240.21,240.14,12.48523767]
[1732733446391,13.52349502,240.2,240.12,32.48523767]
[1732733446775,13.52349502,240.2,240.12,12.48523767]
[1732733447591,2.498,240.19,240.12,12.48523767]
[1732733448783,14.98283767,240.23,240.14,12.48523767]
[1732733450184,2.4978,240.21,240.14,12.48523767]
[1732733450382,14.98303767,240.21,240.14,12.48523767]
[1732733452486,14.98303767,240.21,240.12,32.48523767]
[1732733453383,2.4978,240.21,240.14,12.48523767]
[1732733453589,2.4977,240.22,240.14,12.48523767]
[1732733453787,12.48523767,240.21,240.14,12.48523767]
[1732733454391,12.48523767,240.21,240.13,4.1643]
[1732733454589,12.48523767,240.21,240.12,36.64973767]
[1732733455704,2.4979,240.2,240.12,36.64973767]
[1732733456201,7.98982672,240.19,240.13,20.0]
[1732733457207,2.4979,240.2,240.13,20.0]
[1732733457507,10.48772672,240.2,240.13,20.0]
[1732733461206,7.98982672,240.22,240.13,20.0]
[1732733461510,7.98982672,240.22,240.14,7.98982672]
[1732733462794,2.4978,240.21,240.14,7.98982672]
[1732733463106,1.03821408,240.26,240.14,12.15392672]
[1732733463290,7.98982672,240.24,240.16,7.98982672]
[1732733463803,7.98982672,240.24,240.15,7.98982672]
[1732733464294,10.48732672,240.24,240.15,12.15372672]
[1732733464698,2.4975,240.24,240.15,12.15372672]
[1732733465014,9.02795544,240.23,240.15,12.15372672]
[1732733465184,2.4977,240.22,240.11,75.63208956]
[1732733465383,9.02803663,240.21,240.13,7.98982672]
[1732733466411,11.52583663,240.21,240.11,79.79678956]
[1732733466710,11.52583663,240.21,240.11,87.78661628]
[1732733466906,3.53600991,240.21,240.11,87.78661628]
[1732733467112,7.98982672,240.2,240.11,87.78661628]
[1732733467303,7.98982672,240.2,240.11,12.15452672]
[1732733467611,10.48772672,240.2,240.13,7.98982672]
[1732733468308,2.4979,240.2,240.13,7.98982672]
[1732733468808,1.03828828,240.21,240.13,7.98982672]
[1732733469714,1.03828828,240.21,240.13,12.15422672]
[1732733471713,10.48752672,240.22,240.13,12.15422672]
[1732733472103,1.03823641,240.21,240.13,12.15422672]
[1732733472894,10.48752672,240.22,240.13,12.15422672]
[1732733473097,1.03822658,240.21,240.13,12.15422672]
[1732733473311,3.53602658,240.21,240.13,7.98982672]
[1732733473916,7.98982672,240.2,240.11,7.98982672]
[1732733474095,3.53602658,240.21,240.11,7.98982672]
[1732733474096,7.98982672,240.18,240.11,7.98982672]
[1732733474513,1.03839842,240.17,240.09,7.98982672]
[1732733474718,7.98982672,240.18,240.09,7.98982672]
[1732733475105,7.98982672,240.18,240.09,12.15492672]
[1732733475314,9.0282566,240.18,240.09,12.15492672]
[1732733475514,11.5263566,240.18,240.08,4.1651]
[1732733475719,7.98982672,240.14,240.06,7.98982672]
[1732733476214,9.02842368,240.16,240.08,7.98982672]
[1732733476812,11.52672368,240.16,240.08,7.98982672]
[1732733477117,7.98982672,240.14,240.03,24.1659]
[1732733477322,1.0386503,240.13,240.06,7.98982672]
[1732733478920,12.4969,240.17,240.08,7.98982672]
[1732733478921,1.03864765,240.16,240.08,7.98982672]
[1732733479112,7.98982672,240.14,240.05,7.98982672]
[1732733479326,9.02849091,240.14,240.05,7.98982672]
[1732733480025,11.52699091,240.14,240.05,7.98982672]
[1732733480623,7.98982672,240.12,240.04,4.1658]
[1732733480824,1.03869897,240.11,240.04,4.1658]
[1732733481002,1.03869897,240.11,239.99,4.1668]
[1732733481327,1.03869897,240.11,240.02,7.98982672]
[1732733482010,7.98982672,240.12,240.0,0.700623]
[1732733482011,9.0285371,240.12,240.04,7.98982672]
[1732733482212,1.03867495,240.13,240.06,7.98982672]
[1732733482421,9.02843224,240.14,240.06,7.98982672]
[1732733483505,11.52693224,240.14,240.06,7.98982672]
[1732733487220,7.98982672,240.12,240.04,7.98982672]
[1732733487609,1.03867195,240.11,240.04,7.98982672]
[1732733488639,7.98982672,240.1,240.0,20.0]
[1732733488831,1.03884241,240.09,240.01,7.98982672]
[1732733489126,3.53794241,240.09,240.01,7.98982672]
[1732733489532,7.98982672,240.08,240.0,20.0]
[1732733489712,7.98982672,240.05,239.97,15.4215]
[1732733489913,7.98982672,240.05,239.97,7.98982672]
[1732733490615,1.0389668,240.06,239.99,7.98982672]
[1732733490935,10.48912672,240.07,239.99,7.98982672]
[1732733491109,1.03891905,240.06,239.99,7.98982672]
[1732733492723,1.03891905,240.06,239.97,12.15682672]
[1732733493037,7.98982672,240.05,239.97,12.15682672]
[1732733493338,1.03901132,240.04,239.97,12.15682672]
[1732733493637,1.03901132,240.04,239.97,7.98982672]
[1732733493936,7.98982672,240.01,239.94,7.98982672]
[1732733494234,7.98982672,240.01,239.94,12.15732672]
[1732733494738,7.98982672,239.99,239.9,12.15802672]
[1732733494955,1.03927663,239.98,239.9,12.15802672]
[1732733495533,1.03923923,240.0,239.92,7.98982672]
[1732733495837,1.03923923,240.0,239.94,7.98982672]
[1732733496338,1.03920633,240.05,239.99,7.98982672]
[1732733496515,1.03920633,240.05,240.01,7.98982672]
[1732733496836,1.03897461,240.08,240.03,7.98982672]
[1732733497013,1.03882292,240.11,240.06,7.98982672]
[1732733497211,12.4969,240.12,240.06,7.98982672]
[1732733498334,12.4969,240.12,240.07,12.4888009]
[1732733498714,12.4969,240.12,240.04,4.86630487]
[1732733498919,12.4969,240.12,240.05,12.4888009]
[1732733499434,12.4969,240.12,240.07,12.4888009]
[1732733499920,12.4888009,240.17,240.09,12.4888009]
[1732733500231,13.52727493,240.17,240.09,12.4888009]
[1732733500619,1.03847403,240.17,240.11,12.4888009]
[1732733500845,13.52727493,240.17,240.09,12.4888009]
[1732733501524,12.4888009,240.15,240.07,12.4888009]
[1732733501717,12.4888009,240.13,240.05,12.4888009]
[1732733502128,1.03857576,240.14,240.07,12.4888009]
[1732733502332,1.03860403,240.15,240.09,12.4888009]
[1732733502527,13.52734935,240.17,240.09,12.4888009]
[1732733505041,21.5006009,240.19,240.11,12.4888009]
[1732733505235,19.0026009,240.19,240.11,12.4888009]
[1732733505927,1.03834286,240.18,240.11,12.4888009]
[1732733506125,12.4888009,240.17,240.09,12.4888009]
[1732733506638,1.03834286,240.18,240.11,12.4888009]
[1732733506837,21.5006009,240.19,240.11,12.4888009]
[1732733507033,1.03838498,240.18,240.11,12.4888009]
[1732733507432,12.4888009,240.17,240.09,16.6539009]
[1732733508320,1.03838498,240.18,240.11,12.4888009]
[1732733509044,1.03838498,240.18,240.09,27.5194009]
[1732733509351,12.4888009,240.19,240.11,12.4888009]
[1732733510335,13.52715644,240.21,240.13,12.4888009]
[1732733512050,12.4888009,240.19,240.09,27.5194009]
[1732733512220,1.03846271,240.18,240.09,12.4888009]
[1732733512427,1.03846271,240.18,240.09,16.6538009]
[1732733514027,12.4888009,240.17,240.09,12.4888009]
[1732733514227,12.4888009,240.17,240.09,16.6538009]
[1732733514925,12.4888009,240.19,240.11,12.4888009]
[1732733515721,12.4888009,240.19,240.11,16.6535009]
[1732733517454,1.03833601,240.18,240.11,12.4888009]
[1732733519955,1.03833601,240.18,240.1,12.15532886]
[1732733520160,1.03833601,240.18,240.1,7.99042886]
[1732733520744,1.03833601,240.18,240.04,83.18370633]
[1732733520950,7.99042886,240.17,240.08,27.99042886]
[1732733521147,1.03851243,240.16,240.08,27.99042886]
[1732733521346,7.99042886,240.17,240.08,27.99042886]
[1732733521648,1.03846256,240.16,240.08,27.99042886]
[1732733521851,1.03846256,240.16,240.08,32.15552886]
[1732733522176,1.03846256,240.16,240.08,27.99042886]
[1732733522866,10.48882886,240.15,240.06,7.99042886]
[1732733523053,1.03859276,240.14,240.04,75.63208956]
[1732733523365,1.03859276,240.14,240.04,7.99042886]
[1732733523366,7.99042886,240.13,240.04,7.99042886]
[1732733523537,1.0387291,240.12,240.04,7.99042886]
[1732733523739,3.5374291,240.12,240.04,7.99042886]
[1732733525171,1.0387291,240.12,240.04,7.99042886]
[1732733526152,1.03871325,240.12,240.06,7.99042886]
[1732733527351,9.02911441,240.14,240.06,7.99042886]
[1732733527760,11.52761441,240.14,240.06,7.99042886]
[1732733528063,11.52761441,240.14,240.04,7.99042886]
[1732733528572,7.99042886,240.12,240.04,7.99042886]
[1732733528776,1.03875931,240.11,240.0,1.4298]
[1732733529077,7.99042886,240.1,240.01,7.99042886]
[1732733529372,1.03886912,240.09,240.03,7.99042886]
[1732733529752,3.53796912,240.09,240.0,1.4298]
[1732733529947,1.03886912,240.09,240.01,7.99042886]
[1732733530445,3.53786912,240.09,240.01,7.99042886]
[1732733530843,1.03886912,240.09,240.01,7.99042886]
[1732733532347,1.03886912,240.09,240.03,7.99042886]
[1732733532565,1.03883724,240.08,240.03,7.99042886]
[1732733532869,9.02931566,240.1,240.03,7.99042886]
[1732733533242,1.0388868,240.1,240.03,7.99042886]
[1732733533447,13.53573564,240.11,240.05,7.99042886]
[1732733534373,21.5261645,240.11,240.01,23.776884]
[1732733534560,24.0249645,240.11,240.03,7.99042886]
[1732733534966,21.5261645,240.11,240.03,7.99042886]
[1732733535773,1.03883564,240.11,240.05,7.99042886]
[1732733535950,1.03873209,240.12,240.05,7.99042886]
[1732733539347,1.03874508,240.16,240.09,7.99042886]
[1732733540674,3.53704508,240.16,240.09,7.99042886]
[1732733540868,11.52747394,240.16,240.07,7.99042886]
[1732733541061,7.99042886,240.14,240.05,7.99042886]
[1732733541267,1.03868053,240.13,240.05,7.99042886]
[1732733543658,1.03868053,240.13,240.03,4.1661]
[1732733543880,1.03868053,240.13,240.05,7.99042886]
[1732733547164,1.03868053,240.13,240.01,23.776884]
[1732733547165,7.99042886,240.12,240.01,23.776884]
[1732733547393,7.99042886,240.1,240.0,9.42022886]
[1732733547688,7.99042886,240.08,240.0,9.42022886]
[1732733547884,1.03889458,240.07,240.0,9.42022886]
[1732733548183,7.99042886,240.09,240.0,9.42022886]
[1732733548372,1.03889583,240.08,240.0,9.42022886]
[1732733548569,1.03889583,240.08,240.0,1.4298]
[1732733548783,2.4989,240.1,240.0,9.42022886]
[1732733549082,9.02932393,240.09,240.0,9.42022886]
[1732733551884,11.52832393,240.09,240.0,9.42022886]
[1732733553371,11.52832393,240.09,240.0,1.4298]
[1732733553581,7.99042886,240.07,240.0,1.4298]
[1732733553766,1.03898628,240.06,240.0,1.4298]
[1732733554166,7.99042886,240.05,240.0,1.4298]
[1732733554473,1.03903859,240.04,240.0,1.4298]
[1732733554879,7.99042886,240.03,240.0,1.4298]
[1732733555078,1.03916177,240.02,240.0,1.4298]
[1732733555280,7.99042886,240.01,240.0,1.4298]
[1732733555681,10.49022886,240.01,240.0,1.4298]
[1732733556194,11.52949728,240.01,240.0,1.4298]
[1732733557080,10.49022886,240.01,240.0,1.4298]
[1732733560598,11.52962932,240.01,240.0,1.4298]
[1732733561090,31.52962932,240.01,240.0,1.4298]
[1732733561468,23.53920046,240.01,240.0,1.4298]
[1732733561794,21.03940046,240.01,240.0,1.4298]
[1732733564396,23.53920046,240.01,240.0,1.4298]
[1732733566483,31.52962932,240.01,240.0,1.4298]
[1732733569093,23.53920046,240.01,240.0,1.4298]
[1732733569287,31.52962932,240.01,240.0,1.4298]
[1732733569493,23.53920046,240.01,240.0,1.4298]
[1732733569684,31.52962932,240.01,240.0,1.4298]
[1732733569887,1.03940046,240.01,240.0,1.4298]
[1732733570087,1.03917435,240.03,240.0,1.4298]
[1732733572098,9.02960321,240.03,240.0,1.4298]
[1732733572480,11.52930321,240.03,240.0,1.4298]
[1732733573213,7.99042886,240.01,240.0,1.4298]
[1732733575719,9.0296469,240.01,240.0,1.4298]
[1732733575916,11.5294469,240.01,240.0,1.4298]
[1732733576490,10.49022886,240.01,240.0,1.4298]
[1732733576916,11.5296062,240.01,240.0,1.4298]
[1732733579005,9.0298062,240.01,240.0,1.4298]
[1732733579203,10.49022886,240.01,240.0,1.4298]
[1732733579412,3.53902347,240.03,240.0,1.4298]
[1732733579702,7.99042886,240.02,240.0,1.4298]
[1732733579902,1.03923507,240.01,240.0,1.4298]
[1732733589916,9.02966393,240.01,240.0,1.4298]
[1732733590527,11.52946393,240.01,240.0,1.4298]
[1732733590830,1.03923507,240.01,240.0,1.4298]
[1732733591023,7.99042886,240.01,240.0,1.4298]
[1732733591427,10.49022886,240.01,240.0,1.4298]
[1732733592011,1.03929877,240.01,240.0,1.4298]
[1732733592913,1.03917684,240.03,240.0,1.4298]
[1732733593117,1.03903412,240.05,240.0,9.42022886]
[1732733593430,11.52852441,240.08,240.0,9.42022886]
[1732733593727,9.02942441,240.08,240.0,9.42022886]
[1732733595828,7.99042886,240.06,240.0,1.4298]
[1732733596037,7.99042886,240.04,240.0,1.4298]
[1732733596208,1.03912114,240.03,240.0,1.4298]
[1732733597029,7.99042886,240.06,240.0,1.4298]
[1732733597250,1.03898051,240.05,240.0,1.4298]
[1732733598610,9.02940937,240.05,240.0,1.4298]
[1732733599725,1.03898051,240.05,240.01,16.6028]
[1732733599932,1.03898403,240.08,240.01,24.59322886]
[1732733600739,1.03898403,240.08,240.02,4.1663]
[1732733600917,7.99042886,240.09,240.02,4.1663]
[1732733601129,1.03883091,240.08,240.01,16.6028]
[1732733601632,7.99042886,240.07,240.01,16.6028]
[1732733601832,26.275484,240.13,240.01,16.6028]
[1732733602040,7.99042886,240.08,240.01,20.7692]
[1732733602411,7.99042886,240.08,240.01,16.6028]
[1732733602930,1.03885707,240.07,240.01,16.6028]
[1732733604147,7.99042886,240.08,240.01,20.7692]
[1732733604656,1.03882094,240.07,240.01,20.7692]
[1732733604834,7.99042886,240.08,240.01,20.7692]
[1732733605351,1.03882597,240.07,240.01,20.7692]
[1732733606336,7.99042886,240.06,240.01,16.6028]
[1732733606628,2.4989,240.1,240.01,16.6028]
[1732733606828,7.99042886,240.07,240.01,16.6028]
[1732733607054,1.038906,240.06,240.01,16.6028]
[1732733607427,7.99042886,240.07,240.01,16.6028]
[1732733609151,1.0388987,240.06,240.01,16.6028]
[1732733610156,7.99042886,240.08,240.01,16.6028]
[1732733610334,1.03888085,240.07,240.01,16.6028]
[1732733615436,7.99042886,240.08,240.01,16.6028]
[1732733615641,1.038904,240.07,240.01,16.6028]
[1732733616152,3.538104,240.07,240.01,16.6028]
[1732733616536,1.038904,240.07,240.01,16.6028]
[1732733617259,7.99042886,240.06,240.01,16.6028]
[1732733617430,1.03899095,240.05,240.01,16.6028]
[1732733618236,7.99042886,240.06,240.01,16.6028]
[1732733618455,1.03899807,240.05,240.01,16.6028]
[1732733618637,9.02942488,240.07,240.01,16.6028]
[1732733620062,7.99042886,240.05,240.01,16.6028]
[1732733620356,7.99042886,240.03,240.0,1.4298]
[1732733620567,7.99042886,240.01,240.0,1.4298]
[1732733624272,11.52948262,240.01,240.0,1.4298]
[1732733627772,35.30636662,240.01,240.0,1.4298]
[1732733627947,70.72279937,240.01,240.0,1.4298]
[1732733629964,30.77065507,240.01,240.0,1.4298]